[Event "EYTCC Open U18 2022"]
[Site "Thessaloniki"]
[Date "2022.07.17"]
[Round "6.8"]
[White "Vagman, Roy"]
[Black "Kochavi, Ori"]
[Result "1-0"]
[ECO "B12"]
[WhiteElo "2180"]
[BlackElo "2364"]
[Annotator "ChessBase"]
[PlyCount "165"]
[EventDate "2022.07.12"]
[EventType "team-tourn"]
[EventCountry "GRE"]
[SourceTitle "playchess.com"]
[Source "ChessBase"]
[SourceQuality "1"]
[WhiteTeam "Israel"]
[BlackTeam "Israel"]
[WhiteTeamCountry "ISR"]
[BlackTeamCountry "ISR"]
[TimeControl "40/5400+30:1800+30"]

1. e4 {[%emt 0:00:03]} c6 {[%emt 0:00:09]} 2. d4 {[%emt 0:00:10]} d5 {[%emt 0:00:04]} 3. e5 {[%emt 0:00:08]} Bf5 {[%emt 0:00:03]} 4. h4 {[%emt 0:00:10]} h5 {[%emt 0:00:50]} 5. c4 {[%emt 0:00:09]} e6 {[%emt 0:00:03]} 6. Nc3 {[%emt 0:00:11]} dxc4 {[%emt 0:00:05]} 7. Bxc4 {[%emt 0:00:07]} Nd7 {[%emt 0:00:02]} 8. Nge2 {[%emt 0:00:09]} Be7 {[%emt 0:00:03]} 9. Be3 {[%emt 0:00:09]} Nh6 {[%emt 0:01:44]} 10. Ng3 {[%emt 0:01:37]} Bg6 {[%emt 0:07:03]} 11. Nxh5 {[%emt 0:01:06]} Nf5 {[%emt 0:14:16]} 12. Nf4 {[%emt 0:01:21]} Nxe3 {[%emt 0:18:34]} 13. fxe3 {[%emt 0:00:20]} Bxh4+ {[%emt 0:01:54]} 14. Kf1 {[%emt 0:13:41]} Qg5 {[%emt 0:00:06]} 15. Qf3 {[%emt 0:07:17]} O-O-O {[%emt 0:01:05]} 16. Nxg6 {[%emt 0:20:37]} Qxg6 {[%emt 0:01:25]} 17. Ne4 {[%emt 0:02:45]} Be7 {[%emt 0:06:05]} 18. Ke2 {[%emt 0:00:43]} Kb8 {[%emt 0:18:08]} 19. Bd3 {[%emt 0:13:37]} Rxh1 {[%emt 0:00:23]} 20. Rxh1 {[%emt 0:00:07]} f5 {[%emt 0:00:04]} 21. exf6 {[%emt 0:09:53]} gxf6 {[%emt 0:00:08]} 22. g4 {[%emt 0:05:20]} Qg8 {[%emt 0:08:44]} 23. Ng3 {[%emt 0:04:53]} Nf8 {[%emt 0:01:08]} 24. b3 {[%emt 0:01:08]} Qg5 {[%emt 0:07:16]} 25. Rh5 {[%emt 0:00:57]} Qg7 {[%emt 0:00:05]} 26. a4 {[%emt 0:01:15]} Rd5 {[%emt 0:00:03]} 27. Bc4 {[%emt 0:09:17]} Rg5 {[%emt 0:00:22]} 28. Rxg5 {[%emt 0:01:54]} Qxg5 {[%emt 0:01:20]} 29. Ne4 {[%emt 0:00:02]} Qg6 {[%emt 0:01:39]} 30. Qf4+ {[%emt 0:00:39]} Kc8 {[%emt 0:00:04]} 31. Bd3 {[%emt 0:00:37]} Qg7 {[%emt 0:01:07]} 32. Kd2 {[%emt 0:01:41]} Ng6 {[%emt 0:02:40]} 33. Qg3 {[%emt 0:01:07]} e5 {[%emt 0:02:40]} 34. g5 {[%emt 0:01:03]} Bb4+ {[%emt 0:02:44]} 35. Kc2 {[%emt 0:00:10]} f5 {[%emt 0:00:12]} 36. Nf6 {[%emt 0:00:59]} e4 {[%emt 0:00:04]} 37. Bc4 {[%emt 0:00:11]} Nf8 {[%emt 0:02:00]} 38. Nh5 {[%emt 0:02:38]} Qe7 {[%emt 0:00:52]} 39. Qf4 {[%emt 0:01:04]} Qh7 {[%emt 0:00:28]} 40. Nf6 {[%emt 0:00:00]} Qh3 {[%emt 0:00:00]} 41. Bf1 {[%emt 0:12:17]} Qf3 {[%emt 0:00:19]} 42. Qxf3 {[%emt 0:00:41]} exf3 {[%emt 0:00:03]} 43. Bh3 {[%emt 0:00:07]} Kd8 {[%emt 0:08:08]} 44. Bxf5 {[%emt 0:01:11]} f2 {[%emt 0:00:19]} 45. Bh3 {[%emt 0:00:27]} Be7 {[%emt 0:02:26]} 46. Ne4 {[%emt 0:02:45]} Ke8 {[%emt 0:00:15]} 47. Kd3 {[%emt 0:00:56]} Kf7 {[%emt 0:00:03]} 48. Ke2 {[%emt 0:01:22]} Nh7 {[%emt 0:00:05]} 49. Kxf2 {[%emt 0:07:28]} Nxg5 {[%emt 0:00:08]} 50. Nxg5+ {[%emt 0:00:14]} Bxg5 {[%emt 0:00:03]} 51. Ke2 {[%emt 0:03:59]} Ke7 {[%emt 0:09:37]} 52. e4 {[%emt 0:00:48]} Kd6 {[%emt 0:00:16]} 53. e5+ {[%emt 0:00:58]} Kc7 {[%emt 0:00:19]} 54. Kd3 {[%emt 0:00:12]} Bc1 {[%emt 0:00:06]} 55. Bg2 {[%emt 0:00:55]} Bb2 {[%emt 0:00:07]} 56. Kc4 {[%emt 0:01:02]} Ba1 {[%emt 0:00:17]} 57. b4 {[%emt 0:00:42]} Bb2 {[%emt 0:03:39]} 58. Bh3 {[%emt 0:02:10]} Ba3 {[%emt 0:01:17]} 59. Bf5 {[%emt 0:00:29]} Bb2 {[%emt 0:00:17]} 60. Bg6 {[%emt 0:01:41]} Ba3 {[%emt 0:00:27]} 61. a5 {[%emt 0:00:27]} Bb2 {[%emt 0:00:24]} 62. Be8 {[%emt 0:00:40]} Ba3 {[%emt 0:00:47]} 63. Bg6 {[%emt 0:00:22]} Bb2 {[%emt 0:00:07]} 64. Bc2 {[%emt 0:00:01]} Ba3 {[%emt 0:00:14]} 65. Ba4 {[%emt 0:00:28]} Bb2 {[%emt 0:00:09]} 66. b5 {[%emt 0:00:48]} Ba3 {[%emt 0:03:19]} 67. a6 {[%emt 0:00:53]} cxb5+ {[%emt 0:00:03]} 68. Bxb5 {[%emt 0:00:10]} bxa6 {[%emt 0:00:22]} 69. Bxa6 {[%emt 0:00:01]} Kd7 {[%emt 0:00:07]} 70. Kd5 {[%emt 0:00:13]} Bb2 {[%emt 0:00:32]} 71. Bb5+ {[%emt 0:00:45]} Ke7 {[%emt 0:00:04]} 72. Ba4 {[%emt 0:00:05]} a6 {[%emt 0:01:55]} 73. Ke4 {[%emt 0:00:10]} a5 {[%emt 0:00:17]} 74. Bb3 {[%emt 0:00:14]} Kd7 {[%emt 0:01:00]} 75. Bd1 {[%emt 0:01:07]} Ke7 {[%emt 0:00:11]} 76. d5 {[%emt 0:01:35]} Ba3 {[%emt 0:01:41]} 77. Bb3 {[%emt 0:00:01]} Kd7 {[%emt 0:00:14]} 78. Kd3 {[%emt 0:00:38]} Bb2 {[%emt 0:00:08]} 79. Ke4 {[%emt 0:00:00]} Ba3 {[%emt 0:00:06]} 80. Ba4+ {[%emt 0:00:08]} Ke7 {[%emt 0:00:04]} 81. Kd3 {[%emt 0:00:21]} Bb2 {[%emt 0:00:09]} 82. d6+ {[%emt 0:00:42]} Kd8 {[%emt 0:01:12]} 83. Ke4 1-0

[Event "EYTCC Open U18 2022"]
[Site "Thessaloniki"]
[Date "2022.07.17"]
[Round "6.9"]
[White "Svane, Frederik"]
[Black "Budisavljevic, Luka"]
[Result "1-0"]
[ECO "B30"]
[WhiteElo "2521"]
[BlackElo "2511"]
[Annotator "ChessBase"]
[PlyCount "69"]
[EventDate "2022.07.12"]
[EventType "team-tourn"]
[EventCountry "GRE"]
[SourceTitle "playchess.com"]
[Source "ChessBase"]
[SourceQuality "1"]
[WhiteTeam "Germany"]
[BlackTeam "Serbia"]
[WhiteTeamCountry "GER"]
[BlackTeamCountry "SRB"]
[TimeControl "40/5400+30:1800+30"]

1. e4 {[%emt 0:00:03]} c5 {[%emt 0:00:39]} 2. Nf3 {[%emt 0:00:06]} Nc6 {[%emt 0:00:04]} 3. Bb5 {[%emt 0:00:06]} e6 {[%emt 0:00:07]} 4. O-O {[%emt 0:00:05]} Nge7 {[%emt 0:00:09]} 5. Re1 {[%emt 0:00:04]} a6 {[%emt 0:00:20]} 6. Bf1 {[%emt 0:00:05]} b6 {[%emt 0:00:06]} 7. g3 {[%emt 0:00:05]} Bb7 {[%emt 0:01:13]} 8. Bg2 {[%emt 0:00:06]} Rc8 {[%emt 0:08:00]} 9. h4 {[%emt 0:00:05]} h6 {[%emt 0:04:12]} 10. d3 {[%emt 0:10:33]} d5 {[%emt 0:00:21]} 11. Nbd2 {[%emt 0:00:54]} Nd4 {[%emt 0:10:52]} 12. Nh2 {[%emt 0:04:51]} dxe4 {[%emt 0:00:43]} 13. dxe4 {[%emt 0:02:26]} Ng6 {[%emt 0:09:46]} 14. h5 {[%emt 0:17:40]} Ne5 {[%emt 0:00:48]} 15. f4 {[%emt 0:00:13]} Nd7 {[%emt 0:06:26]} 16. c3 {[%emt 0:00:09]} Nb5 {[%emt 0:00:28]} 17. Nc4 {[%emt 0:06:42]} Qc7 {[%emt 0:01:26]} 18. Qg4 {[%emt 0:09:21]} Na7 {[%emt 0:07:13]} 19. a4 {[%emt 0:01:30]} Rd8 {[%emt 0:07:17]} 20. e5 {[%emt 0:04:51]} Bxg2 {[%emt 0:01:26]} 21. Kxg2 {[%emt 0:00:02]} b5 {[%emt 0:16:38]} 22. axb5 {[%emt 0:00:12]} axb5 {[%emt 0:00:06]} 23. Nd6+ {[%emt 0:03:30]} Bxd6 {[%emt 0:00:15]} 24. Qxg7 {[%emt 0:01:23]} Bxe5 {[%emt 0:00:06]} 25. fxe5 {[%emt 0:01:19]} Ke7 {[%emt 0:00:53]} 26. Rf1 {[%emt 0:00:45]} Qb7+ {[%emt 0:03:29]} 27. Kh3 {[%emt 0:02:47]} Rdf8 {[%emt 0:01:12]} 28. Bxh6 {[%emt 0:01:30]} Rhg8 {[%emt 0:04:18]} 29. Rxf7+ {[%emt 0:00:36]} Rxf7 {[%emt 0:00:21]} 30. Qxg8 {[%emt 0:01:41]} Nf8 {[%emt 0:00:28]} 31. Rd1 {[%emt 0:01:02]} Nc6 {[%emt 0:00:20]} 32. Ng4 {[%emt 0:01:19]} Nh7 {[%emt 0:02:07]} 33. Nf6 {[%emt 0:03:27]} Nxf6 {[%emt 0:00:33]} 34. exf6+ {[%emt 0:00:04]} Rxf6 {[%emt 0:00:09]} 35. Bg5 {[%emt 0:00:07]} 1-0

[Event "EYTCC Open U18 2022"]
[Site "Thessaloniki"]
[Date "2022.07.17"]
[Round "6.10"]
[White "Tadic, Stefan"]
[Black "Koellner, Ruben Gideon"]
[Result "1/2-1/2"]
[ECO "C78"]
[WhiteElo "2356"]
[BlackElo "2422"]
[Annotator "ChessBase"]
[PlyCount "114"]
[EventDate "2022.07.12"]
[EventType "team-tourn"]
[EventCountry "GRE"]
[SourceTitle "playchess.com"]
[Source "ChessBase"]
[SourceQuality "1"]
[WhiteTeam "Serbia"]
[BlackTeam "Germany"]
[WhiteTeamCountry "SRB"]
[BlackTeamCountry "GER"]
[TimeControl "40/5400+30:1800+30"]

1. e4 {[%emt 0:00:31]} e5 {[%emt 0:00:06]} 2. Nf3 {[%emt 0:00:03]} Nc6 {[%emt 0:00:05]} 3. Bb5 {[%emt 0:00:02]} a6 {[%emt 0:00:20]} 4. Ba4 {[%emt 0:00:05]} Nf6 {[%emt 0:00:15]} 5. O-O {[%emt 0:00:13]} Bc5 {[%emt 0:00:23]} 6. Bxc6 {[%emt 0:02:11]} dxc6 {[%emt 0:03:43]} 7. d3 {[%emt 0:00:10]} Bg4 {[%emt 0:06:06]} 8. Nbd2 {[%emt 0:04:49]} Nd7 {[%emt 0:05:09]} 9. Qe1 {[%emt 0:04:54]} Qe7 {[%emt 0:02:55]} 10. h3 {[%emt 0:06:17]} Bh5 {[%emt 0:02:18]} 11. Nh2 {[%emt 0:03:03]} f6 {[%emt 0:01:32]} 12. Nb3 {[%emt 0:04:59]} g5 {[%emt 0:05:01]} 13. Be3 {[%emt 0:22:50]} Bd6 {[%emt 0:01:52]} 14. f3 {[%emt 0:03:54]} Bf7 {[%emt 0:01:11]} 15. c3 {[%emt 0:11:36]} a5 {[%emt 0:05:45]} 16. Rf2 {[%emt 0:04:15]} a4 {[%emt 0:01:33]} 17. Nc1 {[%emt 0:01:10]} h5 {[%emt 0:04:14]} 18. Ne2 {[%emt 0:02:48]} Be6 {[%emt 0:03:21]} 19. Ng3 {[%emt 0:01:08]} Qf7 {[%emt 0:02:37]} 20. b4 {[%emt 0:02:16]} Qh7 {[%emt 0:06:42]} 21. a3 {[%emt 0:03:40]} c5 {[%emt 0:05:29]} 22. Rf1 {[%emt 0:01:30]} O-O {[%emt 0:02:41]} 23. Rd1 {[%emt 0:06:36]} b6 {[%emt 0:12:55]} 24. d4 {[%emt 0:06:09]} Bc4 {[%emt 0:07:26]} 25. dxc5 {[%emt 0:00:11]} bxc5 {[%emt 0:00:21]} 26. Nf5 {[%emt 0:00:03]} cxb4 {[%emt 0:02:44]} 27. cxb4 {[%emt 0:00:21]} Ra6 {[%emt 0:03:09]} 28. h4 {[%emt 0:02:12]} Rc6 {[%emt 0:04:42]} 29. Qg3 {[%emt 0:01:58]} Be6 {[%emt 0:00:24]} 30. hxg5 {[%emt 0:04:16]} Bxf5 {[%emt 0:01:04]} 31. exf5 {[%emt 0:00:01]} fxg5 {[%emt 0:01:51]} 32. Qxg5+ {[%emt 0:00:01]} Kf7 {[%emt 0:00:24]} 33. g4 {[%emt 0:02:04]} Rg8 {[%emt 0:03:06]} 34. Qh6 {[%emt 0:00:32]} Qxf5 {[%emt 0:01:21]} 35. Kh1 {[%emt 0:00:34]} Qg6 {[%emt 0:00:31]} 36. Qxh5 {[%emt 0:00:34]} Rc3 {[%emt 0:02:15]} 37. Qxg6+ {[%emt 0:00:21]} Kxg6 {[%emt 0:00:04]} 38. Bc1 {[%emt 0:00:15]} Rh8 {[%emt 0:00:15]} 39. Kg2 {[%emt 0:00:57]} e4 {[%emt 0:00:37]} 40. f4 {[%emt 0:00:00]} e3 {[%emt 0:00:00]} 41. Nf3 {[%emt 0:05:52]} Rc2+ {[%emt 0:06:45]} 42. Kg3 {[%emt 0:03:20]} e2 {[%emt 0:01:32]} 43. Rxd6+ {[%emt 0:00:03]} cxd6 {[%emt 0:00:08]} 44. Re1 {[%emt 0:01:38]} Rhc8 {[%emt 0:00:53]} 45. Bd2 {[%emt 0:06:46]} Nf6 {[%emt 0:03:39]} 46. Rxe2 {[%emt 0:00:13]} R8c4 {[%emt 0:00:40]} 47. Re6 {[%emt 0:05:53]} Kg7 {[%emt 0:02:25]} 48. Kh4 {[%emt 0:03:58]} Ne4 {[%emt 0:02:18]} 49. Be3 {[%emt 0:00:37]} d5 {[%emt 0:02:24]} 50. f5 {[%emt 0:03:43]} Kg8 {[%emt 0:02:59]} 51. b5 {[%emt 0:01:22]} R4c3 {[%emt 0:02:41]} 52. Rg6+ {[%emt 0:01:30]} Kf8 {[%emt 0:04:04]} 53. Bh6+ {[%emt 0:00:01]} Ke8 {[%emt 0:00:30]} 54. Rg8+ {[%emt 0:00:04]} Kf7 {[%emt 0:03:02]} 55. Rg7+ {[%emt 0:00:02]} Ke8 {[%emt 0:00:09]} 56. Rg8+ {[%emt 0:00:02]} Kf7 {[%emt 0:01:52]} 57. Rg7+ {[%emt 0:00:05]} Ke8 {[%emt 0:00:04]} 1/2-1/2

[Event "EYTCC Open U18 2022"]
[Site "Thessaloniki"]
[Date "2022.07.17"]
[Round "6.11"]
[White "Koelle, Tobias"]
[Black "Ivanovic, Marko"]
[Result "1-0"]
[ECO "D85"]
[WhiteElo "2436"]
[BlackElo "2310"]
[Annotator "ChessBase"]
[PlyCount "81"]
[EventDate "2022.07.12"]
[EventType "team-tourn"]
[EventCountry "GRE"]
[SourceTitle "playchess.com"]
[Source "ChessBase"]
[SourceQuality "1"]
[WhiteTeam "Germany"]
[BlackTeam "Serbia"]
[WhiteTeamCountry "GER"]
[BlackTeamCountry "SRB"]
[TimeControl "40/5400+30:1800+30"]

1. d4 {[%emt 0:00:02]} Nf6 {[%emt 0:01:37]} 2. c4 {[%emt 0:00:03]} g6 {[%emt 0:00:05]} 3. Nc3 {[%emt 0:00:04]} d5 {[%emt 0:00:04]} 4. cxd5 {[%emt 0:00:05]} Nxd5 {[%emt 0:00:03]} 5. e4 {[%emt 0:00:08]} Nxc3 {[%emt 0:00:02]} 6. bxc3 {[%emt 0:00:04]} Bg7 {[%emt 0:00:04]} 7. Nf3 {[%emt 0:00:09]} c5 {[%emt 0:00:07]} 8. Be3 {[%emt 0:00:05]} Qa5 {[%emt 0:00:05]} 9. Qd2 {[%emt 0:00:10]} Nc6 {[%emt 0:00:02]} 10. Rb1 {[%emt 0:00:30]} a6 {[%emt 0:00:04]} 11. Rc1 {[%emt 0:00:05]} cxd4 {[%emt 0:00:03]} 12. cxd4 {[%emt 0:00:04]} Qxd2+ {[%emt 0:00:03]} 13. Kxd2 {[%emt 0:00:07]} e6 {[%emt 0:00:01]} 14. h4 {[%emt 0:00:07]} O-O {[%emt 0:00:19]} 15. h5 {[%emt 0:00:03]} Rd8 {[%emt 0:03:59]} 16. Kc3 {[%emt 0:00:18]} b5 {[%emt 0:27:39]} 17. h6 {[%emt 0:00:06]} Bf6 {[%emt 0:03:57]} 18. Be2 {[%emt 0:00:49]} Bb7 {[%emt 0:01:34]} 19. Rhd1 {[%emt 0:01:00]} Rac8 {[%emt 0:00:05]} 20. Kb2 {[%emt 0:00:12]} Na5 {[%emt 0:28:19]} 21. Bg5 {[%emt 0:01:47]} Bxg5 {[%emt 0:00:06]} 22. Nxg5 {[%emt 0:00:05]} Rxc1 {[%emt 0:01:04]} 23. Rxc1 {[%emt 0:00:22]} Rc8 {[%emt 0:10:44]} 24. Rxc8+ {[%emt 0:05:04]} Bxc8 {[%emt 0:00:22]} 25. Bg4 {[%emt 0:36:49]} Bb7 {[%emt 0:04:26]} 26. Kc3 {[%emt 0:01:36]} Nc6 {[%emt 0:05:47]} 27. f4 {[%emt 0:09:54]} Nd8 {[%emt 0:09:06]} 28. Kb4 {[%emt 0:01:52]} Bc6 {[%emt 0:01:38]} 29. Kc5 {[%emt 0:11:35]} a5 {[%emt 0:00:09]} 30. d5 {[%emt 0:00:26]} exd5 {[%emt 0:00:14]} 31. exd5 {[%emt 0:00:06]} Be8 {[%emt 0:00:02]} 32. Kb6 {[%emt 0:09:07]} a4 {[%emt 0:00:51]} 33. Kc7 {[%emt 0:00:10]} b4 {[%emt 0:00:44]} 34. Bd1 {[%emt 0:00:15]} b3 {[%emt 0:00:11]} 35. Bxb3 {[%emt 0:00:04]} axb3 {[%emt 0:00:03]} 36. axb3 {[%emt 0:00:06]} Ne6+ {[%emt 0:02:19]} 37. Nxe6 {[%emt 0:01:11]} fxe6 {[%emt 0:00:06]} 38. d6 {[%emt 0:00:09]} g5 {[%emt 0:00:11]} 39. g3 {[%emt 0:00:03]} gxf4 {[%emt 0:00:27]} 40. gxf4 {[%emt 0:00:00]} Kf7 {[%emt 0:00:00]} 41. d7 {[%emt 0:00:20]} 1-0

[Event "EYTCC Open U18 2022"]
[Site "Thessaloniki"]
[Date "2022.07.17"]
[Round "6.12"]
[White "Ljepic, Andrej"]
[Black "Krastev, Alexander"]
[Result "0-1"]
[ECO "B40"]
[WhiteElo "2234"]
[BlackElo "2435"]
[Annotator "ChessBase"]
[PlyCount "98"]
[EventDate "2022.07.12"]
[EventType "team-tourn"]
[EventCountry "GRE"]
[SourceTitle "playchess.com"]
[Source "ChessBase"]
[SourceQuality "1"]
[WhiteTeam "Serbia"]
[BlackTeam "Germany"]
[WhiteTeamCountry "SRB"]
[BlackTeamCountry "GER"]
[TimeControl "40/5400+30:1800+30"]

1. e4 {[%emt 0:00:03]} c5 {[%emt 0:00:05]} 2. Nf3 {[%emt 0:00:26]} e6 {[%emt 0:00:08]} 3. g3 {[%emt 0:00:30]} Nc6 {[%emt 0:00:45]} 4. Bg2 {[%emt 0:00:29]} Nf6 {[%emt 0:00:14]} 5. d3 {[%emt 0:00:33]} d6 {[%emt 0:00:43]} 6. O-O {[%emt 0:00:33]} Be7 {[%emt 0:01:07]} 7. Nbd2 {[%emt 0:00:49]} O-O {[%emt 0:01:35]} 8. c3 {[%emt 0:00:51]} e5 {[%emt 0:01:21]} 9. Nc4 {[%emt 0:03:10]} Re8 {[%emt 0:01:49]} 10. Nh4 {[%emt 0:07:55]} Bf8 {[%emt 0:08:20]} 11. Nf5 {[%emt 0:16:21]} b5 {[%emt 0:10:04]} 12. Na3 {[%emt 0:08:48]} Rb8 {[%emt 0:03:02]} 13. Qf3 {[%emt 0:05:26]} g6 {[%emt 0:11:08]} 14. Nh6+ {[%emt 0:06:36]} Kg7 {[%emt 0:00:10]} 15. g4 {[%emt 0:03:19]} Be6 {[%emt 0:02:07]} 16. Bg5 {[%emt 0:13:28]} Be7 {[%emt 0:01:11]} 17. h4 {[%emt 0:01:04]} Ng8 {[%emt 0:03:16]} 18. Bxe7 {[%emt 0:00:50]} Qxe7 {[%emt 0:00:10]} 19. Nxg8 {[%emt 0:00:16]} Qxh4 {[%emt 0:00:28]} 20. Nf6 {[%emt 0:00:39]} Qxf6 {[%emt 0:00:17]} 21. Qg3 {[%emt 0:01:46]} Qg5 {[%emt 0:12:20]} 22. Bf3 {[%emt 0:03:43]} Qd2 {[%emt 0:01:36]} 23. Rfc1 {[%emt 0:03:04]} Qxb2 {[%emt 0:05:40]} 24. Nc2 {[%emt 0:00:19]} Qxc3 {[%emt 0:00:30]} 25. Ne3 {[%emt 0:00:05]} Qa3 {[%emt 0:03:03]} 26. g5 {[%emt 0:03:19]} Nd4 {[%emt 0:04:49]} 27. Kg2 {[%emt 0:01:50]} h5 {[%emt 0:01:17]} 28. gxh6+ {[%emt 0:01:03]} Kh7 {[%emt 0:00:08]} 29. Qg5 {[%emt 0:01:57]} Qa5 {[%emt 0:01:13]} 30. Qf6 {[%emt 0:03:56]} Rg8 {[%emt 0:00:09]} 31. Nd5 {[%emt 0:01:15]} Bxd5 {[%emt 0:03:50]} 32. exd5 {[%emt 0:01:06]} Qc7 {[%emt 0:00:17]} 33. Bg4 {[%emt 0:01:51]} Rbf8 {[%emt 0:04:19]} 34. f4 {[%emt 0:00:34]} Qd8 {[%emt 0:00:23]} 35. fxe5 {[%emt 0:00:20]} Qxf6 {[%emt 0:00:55]} 36. exf6 {[%emt 0:00:02]} Kxh6 {[%emt 0:00:37]} 37. Bd7 {[%emt 0:03:01]} Kg5 {[%emt 0:00:44]} 38. Rab1 {[%emt 0:00:47]} b4 {[%emt 0:01:21]} 39. Re1 {[%emt 0:01:44]} Kxf6 {[%emt 0:01:16]} 40. Re3 {[%emt 0:00:00]} Rd8 {[%emt 0:00:00]} 41. Rf1+ {[%emt 0:00:29]} Nf5 {[%emt 0:02:35]} 42. Bxf5 {[%emt 0:00:13]} gxf5+ {[%emt 0:00:03]} 43. Kf2 {[%emt 0:00:20]} Rde8 {[%emt 0:00:38]} 44. Rfe1 {[%emt 0:00:32]} Rxe3 {[%emt 0:00:14]} 45. Rxe3 {[%emt 0:00:06]} a5 {[%emt 0:00:51]} 46. Rh3 {[%emt 0:00:14]} a4 {[%emt 0:01:16]} 47. Rh6+ {[%emt 0:00:29]} Ke5 {[%emt 0:00:17]} 48. Rh7 {[%emt 0:00:10]} b3 {[%emt 0:00:48]} 49. axb3 {[%emt 0:00:09]} axb3 {[%emt 0:00:04]} 0-1

[Event "EYTCC Open U18 2022"]
[Site "Thessaloniki"]
[Date "2022.07.17"]
[Round "6.13"]
[White "Borhy, Marcell"]
[Black "Subelj, Jan"]
[Result "1/2-1/2"]
[ECO "D30"]
[WhiteElo "2411"]
[BlackElo "2498"]
[Annotator "ChessBase"]
[PlyCount "62"]
[EventDate "2022.07.12"]
[EventType "team-tourn"]
[EventCountry "GRE"]
[SourceTitle "playchess.com"]
[Source "ChessBase"]
[SourceQuality "1"]
[WhiteTeam "Hungary"]
[BlackTeam "Slovenia"]
[WhiteTeamCountry "HUN"]
[BlackTeamCountry "SLO"]
[TimeControl "40/5400+30:1800+30"]

1. d4 {[%emt 0:00:04]} d5 {[%emt 0:00:28]} 2. c4 {[%emt 0:00:08]} e6 {[%emt 0:01:15]} 3. Nf3 {[%emt 0:00:13]} c6 {[%emt 0:00:29]} 4. Nbd2 {[%emt 0:01:11]} f5 {[%emt 0:01:09]} 5. g3 {[%emt 0:00:20]} Nf6 {[%emt 0:02:17]} 6. Bg2 {[%emt 0:00:35]} Bd6 {[%emt 0:04:19]} 7. O-O {[%emt 0:00:48]} O-O {[%emt 0:00:29]} 8. Ne5 {[%emt 0:01:56]} Bd7 {[%emt 0:17:49]} 9. Ndf3 {[%emt 0:01:41]} Be8 {[%emt 0:00:44]} 10. c5 {[%emt 0:04:01]} Bc7 {[%emt 0:05:08]} 11. Bf4 {[%emt 0:05:16]} Bh5 {[%emt 0:02:32]} 12. Nd3 {[%emt 0:01:51]} Nbd7 {[%emt 0:01:04]} 13. Nfe5 {[%emt 0:16:08]} Nxe5 {[%emt 0:02:57]} 14. Bxe5 {[%emt 0:02:32]} Bxe5 {[%emt 0:01:56]} 15. Nxe5 {[%emt 0:01:38]} Nd7 {[%emt 0:00:07]} 16. Nxd7 {[%emt 0:01:45]} Qxd7 {[%emt 0:00:06]} 17. Qd2 {[%emt 0:02:31]} Qc7 {[%emt 0:09:10]} 18. f4 {[%emt 0:01:46]} Rfb8 {[%emt 0:05:08]} 19. Qe3 {[%emt 0:22:44]} Bf7 {[%emt 0:01:07]} 20. Rfb1 {[%emt 0:03:54]} a5 {[%emt 0:02:29]} 21. Rc1 {[%emt 0:02:39]} b5 {[%emt 0:00:55]} 22. cxb6 {[%emt 0:01:22]} Rxb6 {[%emt 0:00:06]} 23. Rc2 {[%emt 0:00:11]} Qb7 {[%emt 0:00:50]} 24. b3 {[%emt 0:07:19]} a4 {[%emt 0:00:14]} 25. bxa4 {[%emt 0:00:39]} Rxa4 {[%emt 0:00:15]} 26. Rac1 {[%emt 0:02:28]} h6 {[%emt 0:01:02]} 27. Qd2 {[%emt 0:04:46]} Qa7 {[%emt 0:02:05]} 28. e3 {[%emt 0:01:13]} Rba6 {[%emt 0:00:27]} 29. Rxc6 {[%emt 0:01:04]} Rxc6 {[%emt 0:00:07]} 30. Rxc6 {[%emt 0:00:04]} Rxa2 {[%emt 0:00:07]} 31. Rc2 {[%emt 0:00:06]} Rxc2 {[%emt 0:00:14]} 1/2-1/2